Cogmind - Beta 13 X2 @@@ ROGUE MODE // 2024.01.13 @ 16:15:21 Player: IzRey Result: Destroyed by as-69221 with Assembled Heavy Rifle Performance ------------- Evolutions (0) 0 Regions Visited (2) 400 Robots Destroyed (9) 45 Value Destroyed (169) 169 Prototype IDs (3) 60 Alien Tech Used (0) 0 Bonus (0) 0 TOTAL SCORE: 674 Bonus ------- None Cogmind --------- Core Integrity 0/250 Matter 245/300 Energy 100/100 System Corruption 0% Temperature Cool (0) Movement Core (50) Location -10/Mines Parts ------- > --- POWER (1) -------- (None) > --- PROPULSION (2) --- (None) > --- UTILITY (2) ------ (None) > --- WEAPON (2) ------- (None) > --- INVENTORY (5) ---- Ion Engine Light Treads Compact Wheel Assault Rifle Light Assault Rifle Peak State ------------ > --- POWER ------------ Light Ion Engine > --- PROPULSION ------- Aluminum Leg Aluminum Leg > --- UTILITY ---------- Small Storage Unit > --- WEAPON ----------- Assault Rifle Light Assault Rifle > --- INVENTORY -------- Ion Engine Light Treads Light Treads Wheel Compact Wheel Assault Rifle [Rating: 6] Favorites ----------- Power Light Ion Engine Engine Light Ion Engine Propulsion Aluminum Leg Leg Aluminum Leg Utility Small Storage Unit Storage Small Storage Unit Weapon Assault Rifle Ballistic Gun Assault Rifle Launcher Grenade Launcher Build | -11 -10 -10 ------- Run | Yrd Mat Min Slots Evolved . | . . . Power . | . . . Propulsion . | . . . Utility . | . . . Weapon . | . . . Parts Attached 4 | . 1 3 Power . | . . . Engine . | . . . Core . | . . . Reactor . | . . . Propulsion . | . . . Treads . | . . . Leg . | . . . Wheel . | . . . Hover . | . . . Flight . | . . . Utility . | . . . Device . | . . . Storage . | . . . Processor . | . . . Hackware . | . . . Protection . | . . . Artifact . | . . . Weapon 4 | . 1 3 Energy Gun . | . . . Energy Cannon . | . . . Ballistic Gun 2 | . 1 1 Ballistic Cannon . | . . . Launcher 2 | . . 2 Special Weapon . | . . . Impact Weapon . | . . . Slashing Weapon . | . . . Piercing Weapon . | . . . Special Melee Weapon . | . . . Unidentified Prototypes . | . . . Parts Lost 1 | . . 1 Power . | . . . Propulsion . | . . . Utility . | . . . Weapon 1 | . . 1 Highest Loss Streak 1 | . . 1 To Critical Strikes . | . . . Average Slot Usage (%) 85 | . 85 85 Engine 14 | . 14 14 Leg 28 | . 28 28 Storage 14 | . 14 14 Ballistic Gun 27 | . 28 26 Naked Turns 1 | . . 1 Heaviest Build 12 | 11 12 12 Greatest Support 20 | 20 20 20 Greatest Overweight (x) . | . . . Average Overweight (x) . | . . . Largest Inventory Capacity 8 | 8 8 8 Average Capacity 7 | 8 8 7 Most Carried 8 | 6 8 8 Average Carried 6 | 6 6 7 Final Capacity 8 | 8 8 5 Final Carried 8 | 6 8 5 Class Distribution -------------------- 100% | Mutant Dominant Class ---------------- Mutant | -10/Materials Mutant | -10/Mines Resources | -11 -10 -10 ----------- Run | Yrd Mat Min Matter Collected 349 | 216 112 21 Remotely . | . . . Salvage Created 270 | 87 123 60 Parts 20 | 5 9 6 Haulers Intercepted . | . . . Recyclers Shooed . | . . . Parts Field Recycled . | . . . Retrieved Matter . | . . . Parts Self-Destructed . | . . . Prevented . | . . . Kills | -11 -10 -10 ------- Run | Yrd Mat Min Combat Hostiles Destroyed 11 | . 3 8 Guns 4 | . 3 1 AOE 7 | . . 7 Classes Destroyed 6 | 2 2 2 Worker 1 | . 1 . Tunneler 1 | 1 . . Recycler 1 | 1 . . Swarmer 3 | . . 3 Grunt 3 | . 3 . Assembled 5 | . . 5 Best Kill Streak 5 | 2 2 5 Combat Bots Only 5 | . 1 5 Max Kills in Single Turn 3 | 1 1 3 Gunslinging . | . . . Exploded 3 | . . 3 Melee . | . . . Uniques/NPCs Destroyed . | . . . Combat | -11 -10 -10 -------- Run | Yrd Mat Min Hostile Shots Fired 42 | . 21 21 Missed 11 | . 5 6 Damage Taken 606 | . 190 416 Core 262 | . 49 213 Absorbed by Shields . | . . . Core Remaining (%) 100 | 100 . . Volleys Fired 26 | 4 17 5 Largest 2 | 2 2 2 Hottest 50 | 40 40 50 Shots Fired 52 | 8 34 10 Gun 49 | 8 34 7 Cannon . | . . . Launcher 3 | . . 3 Special . | . . . Kinetic 49 | 8 34 7 Thermal . | . . . Explosive 3 | . . 3 Electromagnetic . | . . . Robot Hit Streak 10 | 6 10 2 Robot Miss Streak 3 | 1 2 3 Penetration Max . | . . . Secondary Targets . | . . . Shots Hit Robots 34 | 7 25 2 Core Hits 28 | 3 8 17 Critical Kills . | . . . Critical Parts Destroyed . | . . . Critical Strikes . | . . . Melee Attacks . | . . . Impact . | . . . Slashing . | . . . Piercing . | . . . Sneak Attacks . | . . . Combat Hostiles . | . . . Follow-up Attacks . | . . . Damage Inflicted 797 | 69 317 411 Guns 430 | 69 317 44 Cannons . | . . . Explosions 367 | . . 367 Melee . | . . . Ramming . | . . . Kinetic 430 | 69 317 44 Thermal . | . . . Explosive 367 | . . 367 Electromagnetic . | . . . Impact . | . . . Slashing . | . . . Piercing . | . . . Highest Corruption . | . . . Average Corruption . | . . . Corruption Purged . | . . . Corruption Blocked . | . . . Overload Shots . | . . . Overflow Damage 28 | . . 28 Projectiles . | . . . Explosions 28 | . . 28 Melee . | . . . Knockbacks . | . . . Impact . | . . . Kinetic . | . . . Secondary . | . . . Self-Inflicted Damage 75 | . . 75 Shots 2 | . . 2 Rammed . | . . . Targets Rammed . | . . . Kicked . | . . . Crushed . | . . . Highest Temperature 2 | . 2 . Average Temperature 2 | . 2 . Received Heat Transfer 125 | . 105 20 Siege Activations . | . . . Robots Corrupted . | . . . Combat Hostiles . | . . . Parts Fried . | . . . Impact Corruptions . | . . . Robots Melted . | . . . Combat Hostiles . | . . . Parts Melted . | . . . Heat Transferred . | . . . Parts Sabotaged . | . . . Parts Stolen . | . . . Parts Stripped . | . . . Power Chain Reactions . | . . . Missiles Intercepted . | . . . Alert | -11 -10 -10 ------- Run | Yrd Mat Min Peak Influence 195 | 10 195 183 Initial 75 | . 6 75 Average 113 | 8 108 166 Maximum Alert Level . | . . . Low Security (%) 100 | 100 100 100 Level 1 . | . . . Level 2 . | . . . Level 3 . | . . . Level 4 . | . . . Level 5 . | . . . High Security . | . . . Max Security . | . . . Squads Dispatched 1 | . 1 . Investigation 1 | . 1 . Extermination . | . . . Reinforcement . | . . . Assault . | . . . Garrison . | . . . Intercept . | . . . Searches Triggered . | . . . Construction Impeded . | . . . Haulers Reinforced . | . . . Active Scanning Responses . | . . . Cargo Convoy Interrupts . | . . . Stealth | -11 -10 -10 --------- Run | Yrd Mat Min Distress Signals 1 | . 1 . Communications Jammed . | . . . Distress Signals . | . . . Times Spotted 24 | . 7 17 Peak Tracking Total 17 | . 4 17 Tactical Retreats 2 | . 1 1 Traps | -11 -10 -10 ------- Run | Yrd Mat Min Traps Triggered . | . . . Indirectly . | . . . Trap Hack Attempts . | . . . Triggered . | . . . Disarmed . | . . . Reprogrammed . | . . . Reused . | . . . Traps Extracted . | . . . Installed . | . . . Triggered . | . . . Machines | -11 -10 -10 ---------- Run | Yrd Mat Min Machines Disabled 1 | . . 1 Max in Single Turn 1 | . . 1 Machines Repaired . | . . . Machines Dismantled . | . . . Machines Sabotaged . | . . . Overloaded Fab Kills . | . . . Hacking | -11 -10 -10 --------- Run | Yrd Mat Min Machines Accessed 6 | . 5 1 Terminals 5 | . 4 1 Fabricators . | . . . Repair Stations . | . . . Recycling Units 1 | . 1 . Scanalyzers . | . . . Garrison Access . | . . . Total Hacks 13 | . 11 2 Successful 8 | . 8 . Failed 5 | . 3 2 Catastrophic . | . . . Database Lockouts . | . . . Manual 9 | . 7 2 Terminals 12 | . 10 2 Fabricators . | . . . Repair Stations . | . . . Recycling Units 1 | . 1 . Scanalyzers . | . . . Garrison Access . | . . . Terminal Hacks 6 | . 6 . Robot Analysis 2 | . 2 . Prototype ID Bank 1 | . 1 . Terminal Index 1 | . 1 . Registered Components 1 | . 1 . Zone Layout 1 | . 1 . Fabricator Hacks . | . . . Repair Station Hacks . | . . . Recycling Unit Hacks . | . . . Scanalyzer . | . . . Garrison Access Hacks . | . . . Unauthorized Hacks 2 | . 2 . Terminals 1 | . 1 . Botnet 1 | . 1 . Fabricators . | . . . Repair Stations . | . . . Recycling Units 1 | . 1 . Tunnel 1 | . 1 . Scanalyzers . | . . . Garrison Access . | . . . Data Cores Recovered . | . . . Used . | . . . Hacking Detections 5 | . 4 1 Full Trace Events . | . . . Feedback Events . | . . . Feedback Blocked . | . . . Robot Schematics Acquired . | . . . Robots Built . | . . . Authchips . | . . . Time . | . . . Total Robot Build Rating . | . . . Part Schematics Acquired . | . . . Parts Built . | . . . Authchips . | . . . Time . | . . . Total Part Build Rating . | . . . Parts Repaired . | . . . Time . | . . . Parts Recycled . | . . . Recycled Matter . | . . . Retrieved Matter . | . . . Retrieved Components . | . . . Parts Scanalyzed . | . . . Part Schematics Acquired . | . . . Parts Damaged . | . . . Bothacking | -11 -10 -10 ------------ Run | Yrd Mat Min Used RIF Installer . | . . . Robots Hacked . | . . . Non-combat . | . . . Combat . | . . . Robot Hacks Applied . | . . . Relay Couplers Released . | . . . Fabnet Peak Effective % . | . . . Robots Rewired . | . . . Allies Hacked . | . . . Hacks Repelled . | . . . Allies | -11 -10 -10 -------- Run | Yrd Mat Min Total Allies . | . . . Largest Group . | . . . Highest-Rated Group . | . . . Highest-Rated Ally . | . . . Total Orders . | . . . Ally Attacks . | . . . Total Damage . | . . . Kills . | . . . Allies Corrupted . | . . . Allies Melted . | . . . Intel | -11 -10 -10 ------- Run | Yrd Mat Min Robot Analysis Total 2 | . 2 . Derelict Logs Recovered 1 | . . 1 Drone Launches . | . . . Drone Recoveries . | . . . Exploration | -11 -10 -10 ------------- Run | Yrd Mat Min Turns Passed 473 | 31 348 94 Spaces Moved 296 | 17 217 62 Core 1 | . . 1 Treads . | . . . Legs 295 | 17 217 61 Wheels . | . . . Hover . | . . . Flight . | . . . Fastest Speed 50 | 120 120 50 Average Speed 119 | 120 120 118 Slowest Speed 120 | 120 120 120 Overloaded Moves . | . . . Propulsion Burnouts . | . . . Robots Hopped . | . . . Cave-ins Triggered . | . . . Exploration Rate (%) 23 | 3 49 19 Regions Visited 2 Branch Regions 1 Pre-discovered Areas 2 | . 1 1 Known Exits Taken . | . . . Unknown Exits Taken 2 | 1 1 . Scrap Searched . | . . . Spaces Dug . | . . . Terrain Destroyed 25 | . . 25 Melee . | . . . Projectile . | . . . AOE 25 | . . 25 Terrain Rammed . | . . . Walls Destroyed . | . . . Machines Disabled . | . . . Actions | -11 -10 -10 --------- Run | Yrd Mat Min Total 360 | 20 270 70 Wait 32 | . 32 . Move 294 | 16 216 62 Hop . | . . . Pick Up 3 | . 3 . Fast Attach . | . . . Attach . | . . . Detach . | . . . Swap 4 | . 1 3 Drop 1 | . 1 . Fire 26 | 4 17 5 Melee . | . . . Ram . | . . . Kick . | . . . Crush . | . . . Escape Stasis . | . . . Rewire . | . . . Trap . | . . . Miscellaneous . | . . . Route ------- -11/Scrapyard -10/Materials (discovered 2 exits: [*Mat] / *Min) -10/Mines History --------- Turn | Location | Event 13 | -11/Scrapyard | Discovered new exit (range 3) 32 | -11/Scrapyard | Entered Materials 167 | -10/Materials | Discovered new exit (range 14) 309 | -10/Materials | Build established: Mutant 341 | -10/Materials | Discovered new exit (range 16) 380 | -10/Materials | Entered Mines 419 | -10/Mines | Learned location of Zion (-6) 434 | -10/Mines | Assembled infested the area 464 | -10/Mines | Core integrity fell below 50% 471 | -10/Mines | Core integrity fell below 20% 473 | -10/Mines | Released all parts (5) 474 | -10/Mines | Destroyed by as-69221 with Assembled Heavy Rifle Last Messages --------------- 00411_ K-01 Serf collects debris. 00419_ Acquired derelict log, extracted data. World map updated: -6/Zion. 00421_ K-01 Serf cleans the Matter Pump. 00434_ ALERT: Infestation in the mines, dispatching Demolisher response squad. 00448_ K-01 Serf destroyed. 00467_ as-11203 destroyed. 00467_ Destroyed Asb. F-torch. 00467_ as-25130 destroyed. 00467_ as-80556 destroyed. 00470_ as-48940 destroyed. 00470_ as-62542 destroyed. 00470_ Destroyed Asb. Hover Unit. 00470_ as-91572 destroyed. 00472_ Assault Rifle destroyed. 00473_ Released Sml. Storage Unit. 00473_ Released Aluminum Leg. 00473_ Released Lgt. Ion Engine. 00473_ Released Grenade Launcher. Map ----- +----------------------------------------------------+ | ???????????????# " T#?????????????????????????? | | ???????????????#[ * #??????????????????????????? | | ???????????????# == #??????????????????????????? | | ???????????????## #??????????????????????????? | | ????????????????# #??????????????????????????? | | ????????????????# #??????????????????????????? | | ????????????????#### ##??????????????????????????? | | ???????????????????# #???####????????????????????? | | ???????????????????# #### ##???????????????????? | | ???????????????????# # ### #?????????????? | | ??????????????????## ############????? | | ??????????????????# ## | | ?????????# ?????# ####### #########????? | | ?????????# ### ###?????# #????????????? | | ?????????# """ ###?##### #????????????? | | ??????????# ##### """ ###% #????????????? | | ???????????????????# """ ## #####????????????? | | ???????????????????# ## #????????????????? | | ???????????????????# ### #????????????????? | | ???????????????????## # #### #????????????????? | | ????????????????????#### a #????????????????? | | ???????????????????????# #####????????????????? | | ???????????????????????# %% #???????????????????? | | ???????????????????????#aaa% #???????????????????? | | ???????????????????????# [!= ### ????????? | | ???????????????????????# @== ????????? | | ???????????????????????# ????????? | | ???????????????????????# #### ????????? | | ??????????????????????? ##???? ????????? | | ?????????????????????? ??????? ?????????? | | ????????????????????? ????????### #?????????? | | ???????????????????? ????????????# #?????????? | | ??????????????????? ????????????????????????? | | ???????????????????## ????????????????????????? | | ????????????????????## ?????????????????????????? | | ?????????????????????###?????????????????????????? | | ?????????????????????????????????????????????????? | | ?????????????????????????????????????????????????? | | ?????????????????????????????????????????????????? | | ?????????????????????????????????????????????????? | | ?????????????????????????????????????????????????? | | ?????????????????????????????????????????????????? | | ?????????????????????????????????????????????????? | | ?????????????????????????????????????????????????? | | ?????????????????????????????????????????????????? | | ?????????????????????????????????????????????????? | | ?????????????????????????????????????????????????? | | ?????????????????????????????????????????????????? | | ?????????????????????????????????????????????????? | | ?????????????????????????????????????????????????? | +----------------------------------------------------+ Best States ------------- Heat Dissipation 25 Energy Generation 10 Energy Capacity 125 Matter Stores 300 Matter Capacity 300 Sight Range 16 Terrain Scan Density 10 Evasion (%) 55 Item Schematics ----------------- None Robot Schematics ------------------ None Fabricated ------------ Nothing Alien Tech Used ----------------- None Achievements -------------- None Challenges ------------ None Game ------ Seed MachineAntimissileTearclaws Manual? 0 Play Time 00:09:52 Cumulative 558.9 hours Start 2024.01.13 @ 14:49:59 End 2024.01.13 @ 16:15:21 Sessions 3 Manual Loads 0 Difficulty Rogue Special Mode None Game No. 85 Rogue 68 Adventurer 17 Explorer 0 Win Type - Total 1 Types 1/0/0/0/0/0/0/0/0 Lore% 53 Gallery% 65 Achievement% 55 Wizard Run 0 Options --------- ASCII 0 Keyboard 1 Movement Vi Keybinds 0 Fullscreen 1 Font 18/SmallcapsGlow Map View 76x50 Zoom Use 0% Tactical HUD 1 Map Filters NONE Filters NONE Steam 1 RUN: ca46322c-f9bf-4d51-8822-646ecbe49a81